bitfinex-derivatives/quotes_SOLF0:USTF0_20241029
["timestamp","ask_amount","ask_price","bid_price","bid_amount"]
[1730169786874,8.177,182.14,182.03,5.7]
[1730169787070,8.177,182.14,181.99,59.32]
[1730169787071,2.7481,182.1,182.06,2.7485]
[1730169787278,17.19137087,182.12,182.01,17.19137087]
[1730169787581,2.748,182.1,182.06,2.7486]
[1730169788281,5.7,182.11,182.07,2.7483]
[1730169788574,5.7,182.11,182.04,17.19137087]
[1730169790176,5.7,182.11,182.07,2.7483]
[1730169790376,8.4478,182.11,182.07,2.7483]
[1730169790576,8.4478,182.11,182.04,17.19137087]
[1730169791279,2.477,182.14,182.08,17.19137087]
[1730169791987,2.477,182.14,182.09,2.748]
[1730169792185,2.477,182.14,182.08,17.19137087]
[1730169792682,2.477,182.14,182.1,2.7478]
[1730169792884,2.477,182.14,182.08,17.19137087]
[1730169793574,5.2244,182.14,182.1,2.748]
[1730169794184,5.2244,182.14,182.11,2.7478]
[1730169794370,2.477,182.14,182.11,2.7478]
[1730169794579,5.2244,182.14,182.11,2.7478]
[1730169794978,2.477,182.14,182.08,17.19137087]
[1730169797577,2.477,182.14,182.11,2.7478]
[1730169798181,5.2244,182.14,182.1,2.7479]
[1730169798881,2.7475,182.13,182.1,2.7479]
[1730169799991,2.7475,182.13,182.09,2.7481]
[1730169800285,2.477,182.14,182.06,17.19137087]
[1730169800585,2.477,182.14,182.02,17.19137087]
[1730169800586,19.66837087,182.14,182.02,17.19137087]
[1730169800788,1.2736,182.13,182.02,17.19137087]
[1730169801290,1.2736,182.13,182.06,2.7485]
[1730169801291,2.7481,182.1,182.06,2.7485]
[1730169801882,2.7484,182.08,182.04,2.7487]
[1730169802082,5.7,182.1,182.02,17.19137087]
[1730169802490,8.448,182.1,182.06,2.7485]
[1730169802881,5.7,182.1,182.02,17.19137087]
[1730169803582,2.7482,182.09,182.05,2.7486]
[1730169803991,5.7,182.1,182.02,17.19137087]
[1730169804184,5.7,182.1,182.04,2.7488]
[1730169804185,2.7483,182.08,182.04,2.7488]
[1730169805681,8.4481,182.1,182.05,2.7486]
[1730169805882,8.4481,182.1,182.03,17.19137087]
[1730169806081,8.4481,182.1,181.98,17.19137087]
[1730169806082,5.68,182.12,182.07,17.19137087]
[1730169806483,5.68,182.12,182.08,2.7482]
[1730169806793,1.2736,182.13,182.07,17.19137087]
[1730169806996,6.9536,182.13,182.1,2.7479]
[1730169807394,2.477,182.14,182.09,2.7481]
[1730169807595,8.157,182.14,182.07,17.19137087]
[1730169808097,8.157,182.14,182.1,2.7478]
[1730169808401,3.98232287,182.18,182.1,2.7478]
[1730169808402,2.7471,182.17,182.1,17.19137087]
[1730169808595,3.6207,182.18,182.12,17.19137087]
[1730169808798,5.68,182.17,182.12,19.93907087]
[1730169808999,2.7472,182.15,182.12,19.93907087]
[1730169809198,59.34,182.21,182.12,17.19137087]
[1730169809400,5.68,182.2,182.15,2.7472]
[1730169810300,2.7467,182.19,182.12,17.19137087]
[1730169810501,2.7467,182.19,182.14,2.7473]
[1730169810694,2.79631251,182.18,182.1,17.19137087]
[1730169810894,2.7473,182.15,182.11,2.7478]
[1730169811396,5.68,182.14,182.03,17.19137087]
[1730169811587,17.19137087,182.12,182.01,17.19137087]
[1730169811992,2.4656,182.11,182.01,17.19137087]
[1730169812697,1.2056,182.1,182.01,17.19137087]
[1730169812895,5.68,182.09,181.99,17.19137087]
[1730169813298,17.19137087,182.08,181.97,17.19137087]
[1730169814503,2.7489,182.05,182.0,2.7495]
[1730169815212,5.68,182.04,182.0,2.7495]
[1730169815501,5.68,182.04,181.97,17.19137087]
[1730169815703,5.68,182.04,182.01,2.7492]
[1730169817002,5.68,182.04,181.97,17.19137087]
[1730169817796,5.68,182.04,182.01,2.7492]
[1730169818603,5.68,182.04,181.97,17.19137087]
[1730169818806,5.68,182.04,182.02,2.7492]
[1730169819595,5.68,182.04,181.99,17.19137087]
[1730169819801,1.2056,182.1,182.02,17.19137087]
[1730169819802,5.68,182.07,182.02,17.19137087]
[1730169821208,5.68,182.07,182.03,2.749]
[1730169821403,18.39697087,182.1,182.0,17.19137087]
[1730169821601,5.68,182.09,182.0,17.19137087]
[1730169821801,2.7486,182.07,182.02,2.7492]
[1730169823203,2.77804386,182.07,182.0,17.19137087]
[1730169823413,2.7488,182.05,182.0,2.7494]
[1730169823608,5.68,182.04,181.97,17.19137087]
[1730169824012,5.68,182.04,181.99,2.7497]
[1730169824206,5.68,182.04,181.97,17.19137087]
[1730169824811,5.68,182.04,182.01,2.7493]
[1730169825506,5.68,182.04,182.02,2.7492]
[1730169827818,18.39697087,182.1,182.02,2.7492]
[1730169827819,1.2056,182.1,182.02,17.19137087]
[1730169828513,18.39697087,182.1,182.0,17.19137087]
[1730169828714,2.7482,182.09,182.05,2.7488]
[1730169832313,1.2056,182.1,182.03,2.7491]
[1730169832521,1.2056,182.1,182.02,17.19137087]
[1730169832916,5.68,182.09,182.02,17.19137087]
[1730169833117,8.4282,182.09,182.04,2.7489]
[1730169833412,8.4282,182.09,182.02,17.19137087]
[1730169833824,8.4282,182.09,182.05,2.7487]
[1730169834209,5.68,182.09,182.02,17.19137087]
[1730169836026,8.4283,182.09,182.02,17.19137087]
[1730169836623,8.4283,182.09,182.05,2.7487]
[1730169838724,5.66,182.08,182.05,2.7487]
[1730169839425,5.66,182.08,182.0,17.19137087]
[1730169839626,5.66,182.08,182.04,2.7488]
[1730169839627,8.4084,182.08,182.04,2.7488]
[1730169840423,5.66,182.08,182.0,17.19137087]
[1730169840629,2.7485,182.07,182.03,2.749]
[1730169841519,8.40653364,182.08,182.03,2.749]
[1730169841728,6.8656,182.1,182.03,17.19137087]
[1730169842027,9.6137,182.1,182.01,17.19137087]
[1730169842223,6.8656,182.1,182.01,17.19137087]
[1730169842825,2.7482,182.09,182.01,17.19137087]
[1730169843017,6.8656,182.1,182.01,17.19137087]
[1730169843421,9.6137,182.1,182.06,2.7486]
[1730169843834,5.66,182.1,182.03,17.19137087]
[1730169844225,5.66,182.1,182.09,2.7482]
[1730169844530,5.66,182.1,182.03,17.19137087]
[1730169844730,5.66,182.1,181.98,22.69097087]
[1730169844731,2.79631251,182.18,182.06,17.19137087]
[1730169844929,22.85137087,182.18,182.06,17.19137087]
[1730169845126,25.66334204,182.18,182.06,17.19137087]
[1730169845327,2.7471,182.17,182.12,2.7477]
[1730169845530,5.66,182.16,182.12,2.7477]
[1730169846534,5.66,182.16,182.13,2.7475]
[1730169846832,5.66,182.16,182.06,17.19137087]
[1730169847028,5.66,182.16,182.09,2.7482]
[1730169847228,5.66,182.16,182.06,17.19137087]
[1730169848026,5.66,182.16,182.13,2.7475]
[1730169850233,5.66,182.16,182.14,2.7474]
[1730169850836,5.66,182.16,182.08,17.19137087]
[1730169851030,5.66,182.19,182.08,17.19137087]
[1730169851439,8.4067,182.19,182.15,2.7473]
[1730169852435,2.7469,182.18,182.08,17.19137087]
[1730169852641,19.93827087,182.18,182.08,17.19137087]
[1730169852831,17.19137087,182.18,182.08,17.19137087]
[1730169853132,17.19137087,182.18,182.1,2.7479]
[1730169853133,2.7473,182.15,182.1,2.7479]
[1730169853338,2.7473,182.15,182.07,5.66]
[1730169853931,17.19137087,182.18,182.07,5.66]
[1730169854230,2.747,182.17,182.13,2.7476]
[1730169854430,17.19137087,182.18,182.07,5.66]
[1730169854832,17.19137087,182.18,182.08,17.19137087]
[1730169855038,5.66,182.19,182.15,2.7472]
[1730169856332,8.4067,182.19,182.15,2.7472]
[1730169856534,17.19137087,182.18,182.15,2.7472]
[1730169857627,19.73017087,182.2,182.1,17.19137087]
[1730169857834,19.73017087,182.2,182.17,2.7469]
[1730169858035,59.38,182.26,182.12,17.19137087]
[1730169858237,5.66,182.24,182.12,22.85137087]
[1730169858630,2.4641,182.27,182.17,17.19137087]
[1730169858843,2.4641,182.27,182.19,17.19137087]
[1730169859741,2.7449,182.31,182.19,17.19137087]
[1730169859940,17.19137087,182.31,182.19,17.19137087]
[1730169860137,17.19137087,182.28,182.24,2.7459]
[1730169860733,5.66,182.29,182.25,2.7457]
[1730169861141,8.4052,182.29,182.25,2.7457]
[1730169861444,17.19137087,182.28,182.23,2.7459]
[1730169861646,19.93667087,182.28,182.23,2.7459]
[1730169862143,19.93667087,182.28,182.17,22.85137087]
[1730169862144,17.19137087,182.28,182.19,17.19137087]
[1730169862439,17.19137087,182.28,182.08,5.4965]
[1730169862440,17.19137087,182.24,182.12,17.19137087]
[1730169862646,17.19137087,182.21,182.12,5.66]
[1730169862845,17.19137087,182.21,182.1,5.66]
[1730169863138,17.19137087,182.21,182.13,2.7476]
[1730169863139,19.93827087,182.18,182.13,2.7476]
[1730169863444,17.19137087,182.16,182.05,5.66]
[1730169863741,19.93867087,182.16,182.11,2.7477]
[1730169863935,17.19137087,182.16,182.07,17.19137087]
[1730169864334,19.93847087,182.16,182.11,2.7477]
[1730169864538,19.93847087,182.16,182.05,5.66]
[1730169864539,17.19137087,182.14,182.05,5.66]
[1730169865741,17.19137087,182.16,182.06,270.20579991]
[1730169866045,17.19137087,182.16,182.12,2.7476]
[1730169866443,17.19137087,182.16,182.06,270.20579991]
[1730169867449,19.93857087,182.16,182.11,2.7478]
[1730169868040,18.93857087,182.16,182.11,2.7478]
[1730169868538,5.66,182.19,182.06,270.20579991]
[1730169868539,2.7477,182.12,182.08,2.7483]
[1730169868733,5.64,182.14,182.06,253.01442904]
[1730169869148,5.64,182.14,182.12,2.7476]
[1730169869443,5.64,182.14,182.07,17.19137087]
[1730169869650,5.64,182.14,182.13,2.7476]
[1730169870045,5.64,182.18,182.07,17.19137087]
[1730169870241,5.64,182.18,182.09,17.19137087]
[1730169870648,8.3868,182.18,182.13,2.7474]
[1730169871154,8.3868,182.18,182.09,17.19137087]
[1730169871450,2.747,182.17,182.09,17.19137087]
[1730169871947,5.64,182.18,182.14,2.7474]
[1730169873347,8.3869,182.18,182.14,2.7474]
[1730169873843,5.64,182.18,182.14,2.7474]
[1730169875255,5.64,182.18,182.15,2.7472]
[1730169875647,5.64,182.18,182.09,17.19137087]
[1730169876041,5.64,182.18,182.15,2.7472]
[1730169877353,1.2163,182.2,182.18,2.7468]
[1730169877552,5.64,182.21,182.18,2.7468]
[1730169877740,5.64,182.21,182.14,17.19137087]
[1730169877945,5.64,182.21,182.18,2.7467]
[1730169878954,2.7462,182.22,182.18,2.7467]
[1730169880653,6.8403,182.23,182.14,17.19137087]
[1730169880957,17.19137087,182.22,182.17,2.747]
[1730169881541,17.19137087,182.22,182.11,22.83137087]
[1730169881945,17.19137087,182.2,182.11,5.64]
[1730169882157,17.19137087,182.2,182.09,17.19137087]
[1730169883750,2.7471,182.17,182.12,2.7477]
[1730169884161,17.19137087,182.2,182.12,2.7477]
[1730169884455,2.7471,182.17,182.13,2.7475]
[1730169884756,2.7471,182.17,182.09,17.19137087]
[1730169885054,8.387,182.18,182.09,17.19137087]
[1730169886052,5.64,182.18,182.09,17.19137087]
[1730169886258,5.64,182.22,182.11,17.19137087]
[1730169886454,1.2003,182.23,182.14,17.19137087]
[1730169886759,5.64,182.22,182.14,17.19137087]
[1730169887457,8.3863,182.22,182.14,17.19137087]
[1730169887658,5.64,182.22,182.14,17.19137087]
[1730169889456,3.9464,182.23,182.16,2.747]
[1730169889656,3.9464,182.23,182.16,17.19137087]
[1730169889657,1.2003,182.23,182.16,17.19137087]
[1730169890264,3.9464,182.23,182.16,17.19137087]
[1730169890559,3.9464,182.23,182.18,2.7468]
[1730169890762,3.9464,182.23,182.16,17.19137087]
[1730169891251,1.2003,182.23,182.2,2.7465]
[1730169891451,1.2003,182.23,182.16,17.19137087]
[1730169891855,3.9634,182.24,182.21,2.7464]
[1730169892364,2.7457,182.26,182.22,2.7461]
[1730169892557,2.7457,182.26,182.19,17.19137087]
[1730169893249,2.7459,182.25,182.19,17.19137087]
[1730169893648,17.19137087,182.24,182.14,17.19137087]
[1730169893851,2.7465,182.2,182.14,17.19137087]
[1730169894056,6.8869,182.23,182.14,17.19137087]
[1730169895255,2.7463,182.22,182.18,2.7467]
[1730169895459,6.8869,182.23,182.18,2.7467]
[1730169895961,2.7465,182.2,182.17,2.7469]
[1730169896259,2.7465,182.2,182.14,17.19137087]
[1730169896458,2.7465,182.2,182.12,5.64]
[1730169897265,2.7465,182.2,182.17,2.7469]
[1730169898456,2.7465,182.2,182.11,17.19137087]
[1730169899363,2.7465,182.2,182.16,2.747]
[1730169899567,2.7467,182.19,182.16,2.747]
[1730169902568,2.7469,182.18,182.14,2.7473]
[1730169902762,18.37927087,182.22,182.11,17.19137087]
[1730169903168,2.7466,182.2,182.16,2.747]
[1730169904363,18.37927087,182.22,182.16,2.747]
[1730169904667,2.7466,182.2,182.16,2.747]
[1730169905664,1.1879,182.22,182.11,17.19137087]
[1730169905866,6.8079,182.22,182.11,17.19137087]
[1730169906061,17.19137087,182.21,182.11,17.19137087]
[1730169906364,19.91217599,182.21,182.11,17.19137087]
[1730169906565,10.98334633,182.18,182.12,10.98334633]
[1730169907370,13.73024633,182.18,182.12,10.98334633]
[1730169907567,10.98334633,182.16,182.09,5.62]
[1730169907768,10.98334633,182.16,182.11,10.98334633]
[1730169908563,2.7469,182.18,182.09,22.78299698]
[1730169908773,17.16299698,182.21,182.11,17.16299698]
[1730169909171,6.8079,182.22,182.13,17.16299698]
[1730169909370,23.97089698,182.22,182.02,5.4984]
[1730169909575,2.747,182.17,182.08,17.16299698]
[1730169909871,17.16299698,182.19,182.08,17.16299698]
[1730169910078,2.747,182.17,182.13,2.7474]
[1730169911574,6.8079,182.22,182.13,17.16299698]
[1730169912263,1.1879,182.22,182.13,17.16299698]
[1730169913471,6.8669,182.23,182.16,17.16299698]
[1730169913670,5.62,182.25,182.16,17.16299698]
[1730169914263,2.746,182.24,182.2,2.7464]
[1730169914468,3.7556,182.3,182.2,17.16299698]
[1730169914669,5.62,182.29,182.2,17.16299698]
[1730169914871,8.3652,182.29,182.24,2.7458]
[1730169915063,8.3652,182.29,182.2,17.16299698]
[1730169915673,3.7556,182.3,182.2,17.16299698]
[1730169915976,9.3756,182.3,182.25,2.7457]
[1730169916365,2.7453,182.28,182.2,17.16299698]
[1730169916671,9.3756,182.3,182.25,2.7457]
[1730169917070,2.7453,182.29,182.25,2.7457]
[1730169917266,9.3756,182.3,182.2,17.16299698]
[1730169917473,2.7452,182.29,182.2,17.16299698]
[1730169917669,9.3756,182.3,182.2,17.16299698]
[1730169917873,17.16299698,182.29,182.23,2.7461]
[1730169918571,2.7455,182.27,182.23,2.7461]
[1730169919275,2.7453,182.28,182.23,2.7461]
[1730169921070,12.1206,182.3,182.26,2.7456]
[1730169921375,9.3756,182.3,182.2,17.16299698]
[1730169921981,3.7556,182.3,182.2,17.16299698]
[1730169922277,2.5349,182.3,182.23,17.16299698]
[1730169922484,5.62,182.33,182.23,17.16299698]
[1730169922677,5.62,182.34,182.23,17.16299698]
[1730169922877,2.7447,182.32,182.29,2.7451]
[1730169923173,5.62,182.34,182.29,2.7451]
[1730169923372,2.745,182.3,182.26,2.7455]
[1730169923570,17.16299698,182.29,182.16,5.62]
[1730169923779,8.1483,182.28,182.16,5.62]
[1730169923973,8.1483,182.28,182.16,22.78299698]
[1730169924176,2.7458,182.26,182.16,22.78299698]
[1730169924678,8.1483,182.28,182.19,2.7467]
[1730169924884,2.7459,182.25,182.16,17.16299698]
[1730169925475,2.7459,182.25,182.21,2.7463]
[1730169926684,19.90869698,182.26,182.22,2.7462]
[1730169926979,25.31129698,182.28,182.19,17.16299698]
[1730169927177,25.31129698,182.28,182.21,2.7463]
[1730169927374,25.31129698,182.28,182.16,17.16299698]
[1730169927375,17.16299698,182.24,182.15,5.62]
[1730169927787,17.16299698,182.24,182.18,2.7467]
[1730169927976,17.16299698,182.24,182.13,17.16299698]
[1730169928182,5.6,182.23,182.11,17.16299698]
[1730169928381,2.7472,182.16,182.08,5.6]
[1730169928681,17.16299698,182.19,182.08,5.6]
[1730169928682,5.6,182.18,182.08,5.6]
[1730169928881,8.1376,182.18,182.08,5.6]
[1730169929275,8.1376,182.18,182.08,22.76299698]
[1730169929685,6.8866,182.18,182.11,17.16299698]
[1730169929885,5.6,182.18,182.11,17.16299698]
[1730169930286,2.7465,182.2,182.11,17.16299698]
[1730169931391,5.6,182.22,182.08,5.6]
[1730169931392,17.16299698,182.19,182.08,5.6]
[1730169931592,1.2911,182.18,182.08,5.6]
[1730169932287,2.747,182.17,182.13,2.7476]
[1730169933893,2.7471,182.16,182.12,2.7477]
[1730169934483,5.6,182.17,182.08,22.76299698]
[1730169935395,2.7472,182.16,182.12,2.7476]
[1730169937393,5.6,182.17,182.15,2.7472]
[1730169937693,5.6,182.17,182.1,17.16299698]
[1730169937892,5.6,182.17,182.08,22.76299698]
[1730169937893,17.16299698,182.17,182.08,22.76299698]
[1730169938096,2.7474,182.15,182.11,2.7477]
[1730169938302,2.7474,182.15,182.08,5.6]
[1730169938493,17.16299698,182.17,182.08,5.6]
[1730169939093,1.2911,182.18,182.08,22.76299698]
[1730169939294,1.2911,182.18,182.11,17.16299698]
[1730169939489,1.2911,182.18,182.08,22.76299698]
[1730169939687,2.747,182.17,182.13,2.7475]
[1730169939890,1.2911,182.18,182.13,2.7475]
[1730169940291,1.2911,182.18,182.08,22.76299698]
[1730169940496,17.16299698,182.15,182.08,5.6]
[1730169941303,2.7476,182.14,182.1,2.748]
[1730169943393,17.16299698,182.15,182.06,253.01442904]
[1730169943603,17.16299698,182.12,182.03,5.6]
[1730169945295,2.748,182.11,182.08,2.7483]
[1730169945800,5.6,182.14,182.04,17.16299698]
[1730169945995,2.7476,182.13,182.09,2.7481]
[1730169946506,2.7478,182.12,182.09,2.7481]
[1730169946800,1.2911,182.18,182.07,17.16299698]
[1730169947006,5.6,182.17,182.07,17.16299698]
[1730169947207,2.7474,182.15,182.07,17.16299698]
[1730169948404,2.7474,182.15,182.11,2.7477]
[1730169949195,5.6,182.17,182.07,17.16299698]
[1730169949502,2.7475,182.14,182.07,17.16299698]
[1730169949900,2.7475,182.14,182.1,2.7479]
[1730169952606,2.7475,182.14,182.11,2.7479]
[1730169954209,22.76299698,182.17,182.09,2.7481]
[1730169954609,22.76299698,182.17,182.05,17.16299698]
[1730169954811,17.16299698,182.09,181.92,5.6]
[1730169955017,8.0992,182.08,181.97,17.16299698]
[1730169955211,2.7488,182.05,182.0,2.7495]
[1730169955401,8.0992,182.08,181.97,17.16299698]
[1730169955715,18.42239698,182.09,181.97,17.16299698]
[1730169955716,5.6,182.09,182.06,2.7485]
[1730169955911,5.6,182.09,182.02,17.16299698]
[1730169956312,5.6,182.09,182.07,2.7484]
[1730169956517,5.6,182.09,182.02,17.16299698]
[1730169957719,3.7708,182.18,182.02,17.16299698]
[1730169957720,3.7708,182.18,182.07,17.16299698]
[1730169957916,5.58,182.17,182.07,17.16299698]
[1730169958320,5.58,182.17,182.1,2.748]
[1730169958321,2.7472,182.16,182.1,2.748]
[1730169958528,2.7472,182.16,182.07,17.16299698]
[1730169958726,5.58,182.15,182.07,17.16299698]
[1730169959230,5.58,182.15,182.09,17.16299698]
[1730169960122,5.58,182.15,182.12,2.7476]
[1730169961916,5.58,182.15,182.09,17.16299698]
[1730169962124,5.58,182.15,182.01,17.16299698]
[1730169962125,2.7476,182.13,182.04,17.16299698]
[1730169962331,2.7476,182.13,182.07,17.16299698]
[1730169962728,2.7476,182.13,182.1,2.748]
[1730169962929,2.7476,182.13,182.07,17.16299698]
[1730169963429,17.16299698,182.14,182.04,17.16299698]
[1730169963830,5.58,182.15,182.04,17.16299698]
[1730169964126,2.7476,182.14,182.04,17.16299698]
[1730169964635,5.58,182.15,182.09,2.7481]
[1730169964932,2.7476,182.13,182.09,2.7481]
[1730169965128,2.7476,182.13,182.1,2.748]
[1730169965834,5.58,182.15,182.1,2.748]
[1730169966021,2.7475,182.14,182.1,2.748]
[1730169967130,17.16299698,182.14,182.04,17.16299698]
[1730169967324,17.16299698,182.14,181.92,17.16299698]
[1730169967325,19.96872385,182.14,182.02,17.16299698]
[1730169967833,2.7482,182.1,182.06,2.7485]
[1730169968134,2.7482,182.1,182.02,17.16299698]
[1730169968337,19.96872385,182.14,182.02,17.16299698]
[1730169968635,2.7479,182.11,182.02,17.16299698]
[1730169969024,2.7479,182.11,182.07,2.7483]
[1730169969430,19.96872385,182.14,182.02,17.16299698]
[1730169969627,2.7481,182.1,182.07,2.7485]
[1730169969924,17.16299698,182.14,182.07,2.7485]
[1730169970129,2.7478,182.12,182.08,2.7482]
[1730169970724,2.7479,182.11,182.08,2.7482]
[1730169971236,2.7479,182.11,181.85,16.51]
[1730169971434,10.0,182.03,181.85,2.20073151]
[1730169971633,16.5,181.85,181.2,59.36]
[1730169971835,16.51,181.84,181.44,17.16299698]
[1730169972046,17.16299698,181.6,181.37,59.36]
[1730169972229,17.16299698,181.66,181.23,2.68145094]
[1730169972230,17.16299698,181.61,181.45,17.16299698]
[1730169972431,10.4,181.8,181.51,17.16299698]
[1730169972730,17.16299698,181.67,181.54,17.16299698]
[1730169972936,17.16299698,181.65,181.52,10.4]
[1730169973239,17.16299698,181.62,181.48,17.16299698]
[1730169973436,2.7564,181.55,181.43,17.16299698]
[1730169973642,17.16299698,181.58,181.44,17.16299698]
[1730169973839,15.49154916,181.54,181.44,3.3647831]
[1730169974145,7.65634635,181.53,181.46,17.16299698]
[1730169974339,7.65634635,181.52,181.46,17.16299698]
[1730169974538,5.46377831,181.51,181.45,40.73389743]
[1730169974835,7.69186094,181.5,181.48,27.55609743]
[1730169975035,27.55609743,181.65,181.48,27.55609743]
[1730169975228,14.42092916,181.64,181.54,27.55609743]
[1730169975542,27.55609743,181.71,181.54,37.97609743]
[1730169975840,27.55609743,181.68,181.52,10.42]
[1730169976240,27.55609743,181.68,181.5,27.55609743]
[1730169976442,27.55609743,181.7,181.51,10.42]
[1730169976741,10.42,181.78,181.51,10.42]
[1730169976742,27.55609743,181.67,181.51,10.42]
[1730169977132,2.7554,181.62,181.52,10.42]
[1730169977331,10.42,181.78,181.46,59.42]
[1730169977332,27.55609743,181.64,181.46,27.55609743]
[1730169977743,27.55609743,181.6,181.43,27.55609743]
[1730169977938,27.55609743,181.6,181.44,0.60652384]
[1730169978144,27.55609743,181.6,181.45,10.42]
[1730169978536,27.55609743,181.6,181.46,10.42]
[1730169978843,27.55609743,181.6,181.45,10.42]
[1730169979041,27.55609743,181.6,181.43,27.55609743]
[1730169979231,27.55609743,181.6,181.45,10.42]
[1730169979432,2.7565,181.55,181.45,10.42]
[1730169979643,27.55609743,181.6,181.45,10.42]
[1730169979944,27.55609743,181.6,181.46,27.55609743]
[1730169980241,27.54906631,181.62,181.46,27.54906631]
[1730169980537,1.1832,181.77,181.46,27.54906631]
[1730169980747,27.54906631,181.65,181.5,27.54906631]
[1730169981632,1.1832,181.77,181.5,26.97549509]
[1730169981837,27.54906631,181.69,181.53,27.54906631]
[1730169982039,27.54906631,181.69,181.54,10.34]
[1730169982234,2.755,181.64,181.54,10.34]
[1730169982443,27.54906631,181.69,181.54,10.34]
[1730169982632,27.54906631,181.69,181.54,1.2929]
[1730169982833,27.54906631,181.69,181.55,10.34]
[1730169983037,2.7551,181.64,181.54,4.0494]
[1730169983241,27.54906631,181.69,181.55,10.34]
[1730169983645,2.7549,181.65,181.55,13.0963]
[1730169984546,27.54906631,181.65,181.54,1.2929]
[1730169984757,27.54906631,181.65,181.55,10.34]
[1730169984947,2.7541,181.7,181.54,4.0494]
[1730169985144,27.54906631,181.7,181.55,10.34]
[1730169985645,27.54906631,181.7,181.56,10.34]
[1730169986147,2.7556,181.6,181.56,10.34]
[1730169986551,2.7554,181.62,181.56,10.34]
[1730169986747,1.1832,181.77,181.56,37.88906631]
[1730169986949,27.54906631,181.72,181.56,37.88906631]
[1730169987139,2.7549,181.65,181.56,40.64516631]
[1730169987341,2.7549,181.65,181.56,37.88906631]
[1730169987948,27.54906631,181.72,181.56,37.88906631]
[1730169988155,27.54906631,181.72,181.56,40.64526631]
[1730169989247,27.54906631,181.72,181.56,37.88906631]
[1730169989447,1.1832,181.77,181.56,27.54906631]
[1730169989448,27.54906631,181.69,181.56,27.54906631]
[1730169989652,27.54906631,181.69,181.54,1.2929]
[1730169989850,27.54906631,181.66,181.55,10.34]
[1730169990050,27.54906631,181.66,181.54,1.2929]
[1730169990445,27.54906631,181.66,181.54,11.6329]
[1730169990955,27.54906631,181.64,181.55,10.34]
[1730169991255,27.54906631,181.64,181.54,1.2929]
[1730169991557,27.54906631,181.64,181.55,9.8237859]
[1730169991745,2.7554,181.62,181.55,9.8237859]
[1730169991951,27.54906631,181.64,181.54,11.2729]
[1730169993156,2.7557,181.6,181.54,11.2729]
[1730169993649,2.7558,181.59,181.54,11.2729]
[1730169994655,27.54906631,181.66,181.54,11.2729]
[1730169994852,2.7556,181.61,181.54,11.2729]
[1730169995848,27.54906631,181.66,181.27,16.51]
[1730169996047,27.54906631,181.63,181.46,38.76406631]
[1730169996251,27.54906631,181.63,181.47,2.468]
[1730169996849,2.7563,181.56,181.49,2.7572]
[1730169997159,2.7563,181.56,181.47,2.468]
[1730169997359,2.756,181.58,181.49,27.54906631]
[1730169997557,2.72002689,181.75,181.49,27.54906631]
[1730169997757,27.54906631,181.68,181.52,27.54906631]
[1730169998149,5.5061,181.78,181.52,27.54906631]
[1730169998150,27.54906631,181.65,181.52,27.54906631]
[1730169998554,2.7558,181.59,181.54,2.7565]
[1730169998852,2.7558,181.59,181.55,9.98]
[1730169999854,2.7553,181.62,181.55,9.98]
[1730170000055,27.54906631,181.69,181.55,9.98]
[1730170000448,27.54906631,181.69,181.55,9.78828559]
[1730170001355,27.54906631,181.69,181.55,12.54458559]
[1730170001356,2.7555,181.61,181.55,12.54458559]
[1730170001755,27.54906631,181.66,181.53,59.52]
[1730170001961,27.54906631,181.66,181.54,9.58]
[1730170002262,27.54906631,181.66,181.49,87.06906631]
[1730170002462,2.756,181.58,181.52,2.7567]
[1730170002658,27.54906631,181.66,181.53,9.58]
[1730170003651,2.7561,181.57,181.53,9.58]
[1730170004555,2.7561,181.57,181.53,12.3366]
[1730170005159,2.7557,181.59,181.55,2.7563]
[1730170005558,2.7557,181.59,181.53,9.58]